Cogmind - Beta 13 @@@ ROGUE MODE // 2024.05.09 @ 10:54:39 Player: Julianium Result: Destroyed by G-47 Trooper with Particle Gun Performance ------------- Evolutions (1) 500 Regions Visited (2) 400 Robots Destroyed (29) 145 Value Destroyed (850) 850 Prototype IDs (1) 20 Alien Tech Used (0) 0 Bonus (0) 0 TOTAL SCORE: 1915 Bonus ------- None Cogmind --------- Core Integrity 0/400 Matter 277/300 Energy 250/250 System Corruption 0% Temperature Cool (36) Movement Rolling (95) Ox1 Location -9/Materials Parts ------- > --- POWER (1) -------- Ion Engine > --- PROPULSION (3) --- Wheel Wheel > --- UTILITY (3) ------ Large Storage Unit Sensor Array Light Armor Plating > --- WEAPON (2) ------- Heavy Particle Gun Heavy Assault Rifle > --- INVENTORY (15) --- Ion Engine Light Ion Engine Heat Sink Small Storage Unit High-capacity Battery (250) High-capacity Matter Pod (200) Targeting Computer Tractor Beam Grenade Launcher Peak State ------------ > --- POWER ------------ Ion Engine > --- PROPULSION ------- Aluminum Leg Aluminum Leg Aluminum Leg > --- UTILITY ---------- Heat Sink Large Storage Unit Sensor Array > --- WEAPON ----------- Heavy Particle Gun Hammer > --- INVENTORY -------- Ion Engine Ion Engine Compact Wheel Compact Wheel Small Storage Unit High-capacity Battery High-capacity Matter Pod Targeting Computer Tractor Beam Heavy Particle Gun Grenade Launcher [Rating: 13] Favorites ----------- Power Ion Engine Engine Ion Engine Propulsion Light Treads Treads Light Treads Leg Aluminum Leg Wheel Compact Wheel Utility Heat Sink Device Heat Sink Storage Large Storage Unit Protection Light Armor Plating Weapon Hammer Energy Gun Heavy Particle Gun Energy Cannon Beam Cannon Ballistic Gun Light Assault Rifle Impact Weapon Hammer Slashing Weapon Mining Claw Build | -11 -10 -9 ------- Run | Yrd Mat Mat Slots Evolved 2 | . . 2 Power . | . . . Propulsion 1 | . . 1 Utility 1 | . . 1 Weapon . | . . . Parts Attached 43 | 7 21 15 Power 3 | 1 1 1 Engine 3 | 1 1 1 Core . | . . . Reactor . | . . . Propulsion 14 | 2 7 5 Treads 3 | 2 1 . Leg 5 | . 4 1 Wheel 6 | . 2 4 Hover . | . . . Flight . | . . . Utility 11 | 1 4 6 Device 6 | . 2 4 Storage 4 | 1 2 1 Processor . | . . . Hackware . | . . . Protection 1 | . . 1 Artifact . | . . . Weapon 15 | 3 9 3 Energy Gun 7 | 2 3 2 Energy Cannon 1 | . 1 . Ballistic Gun 3 | 1 1 1 Ballistic Cannon . | . . . Launcher . | . . . Special Weapon . | . . . Impact Weapon 3 | . 3 . Slashing Weapon 1 | . 1 . Piercing Weapon . | . . . Special Melee Weapon . | . . . Unidentified Prototypes 1 | . . 1 Parts Lost 14 | . 5 9 Power 1 | . . 1 Propulsion 6 | . 1 5 Utility 1 | . . 1 Weapon 6 | . 4 2 Highest Loss Streak 9 | . 2 9 To Critical Strikes . | . . . Average Slot Usage (%) 90 | . 96 73 Engine 12 | . 14 7 Treads 8 | . 11 . Leg 7 | . 5 13 Wheel 8 | . 10 2 Device 13 | . 11 18 Storage 14 | . 14 12 Energy Gun 5 | . 4 9 Energy Cannon 1 | . 1 . Ballistic Gun 7 | . 8 2 Impact Weapon 9 | . 11 5 Naked Turns . | . . . Heaviest Build 35 | 14 31 35 Greatest Support 40 | 40 40 32 Greatest Overweight (x) 10 | . 1 10 Average Overweight (x) . | . . 2 Largest Inventory Capacity 15 | 8 15 15 Average Capacity 11 | 7 10 15 Most Carried 13 | 6 13 11 Average Carried 8 | 4 8 9 Final Capacity 15 | 8 15 15 Final Carried 12 | 6 12 9 Class Distribution -------------------- 95% | Mutant 4% | Scavenger-Mutant Dominant Class ---------------- Mutant | -10/Materials Mutant | -9/Materials Resources | -11 -10 -9 ----------- Run | Yrd Mat Mat Matter Collected 794 | 195 296 303 Remotely . | . . . Salvage Created 1017 | . 568 449 Parts 48 | . 26 22 Haulers Intercepted . | . . . Recyclers Shooed . | . . . Parts Field Recycled . | . . . Retrieved Matter . | . . . Parts Self-Destructed . | . . . Prevented . | . . . Kills | -11 -10 -9 ------- Run | Yrd Mat Mat Combat Hostiles Destroyed 23 | . 15 8 Melee 8 | . 5 3 Guns 5 | . 4 1 Classes Destroyed 7 | . 4 3 Worker 2 | . . 2 Tunneler 1 | . . 1 Operator 1 | . 1 . Watcher 2 | . 2 . Swarmer 3 | . 3 . Grunt 16 | . 12 4 Sentry 4 | . . 4 Best Kill Streak 4 | . 4 4 Combat Bots Only 4 | . 4 4 Max Kills in Single Turn 1 | . 1 1 Gunslinging . | . . . Exploded . | . . . Melee 1 | . 1 1 Uniques/NPCs Destroyed . | . . . Combat | -11 -10 -9 -------- Run | Yrd Mat Mat Hostile Shots Fired 186 | . 89 97 Missed 39 | . 21 18 Damage Taken 1976 | . 827 1149 Core 545 | . 142 403 Absorbed by Shields . | . . . Regen/Repaired (Parts) 55 | . 55 . Core Remaining (%) 71 | 100 43 . Volleys Fired 30 | . 21 9 Largest 2 | . 2 2 Hottest 78 | . 60 78 Shots Fired 51 | . 38 13 Gun 51 | . 38 13 Cannon . | . . . Launcher . | . . . Special . | . . . Kinetic 23 | . 19 4 Thermal 11 | . 2 9 Explosive . | . . . Electromagnetic 17 | . 17 . Robot Hit Streak 9 | . 9 6 Robot Miss Streak 5 | . 3 5 Penetration Max . | . . . Secondary Targets . | . . . Shots Hit Robots 98 | . 64 34 Core Hits 29 | . 17 12 Critical Kills 1 | . 1 . Critical Parts Destroyed 9 | . 5 4 Critical Strikes 11 | . 7 4 Corrupt 1 | . 1 . Smash 10 | . 6 4 Melee Attacks 81 | . 51 30 Impact 74 | . 44 30 Slashing 7 | . 7 . Piercing . | . . . Sneak Attacks . | . . . Combat Hostiles . | . . . Follow-up Attacks . | . . . Damage Inflicted 2040 | . 1356 684 Guns 434 | . 283 151 Cannons . | . . . Explosions 45 | . 45 . Melee 1561 | . 1028 533 Ramming . | . . . Kinetic 116 | . 102 14 Thermal 182 | . 45 137 Explosive . | . . . Electromagnetic 181 | . 181 . Impact 1423 | . 890 533 Slashing 138 | . 138 . Piercing . | . . . Highest Corruption . | . . . Average Corruption . | . . . Corruption Purged . | . . . Corruption Blocked . | . . . Overload Shots . | . . . Overflow Damage 229 | . 169 60 Projectiles . | . . . Explosions . | . . . Melee 229 | . 169 60 Knockbacks 4 | . 4 . Impact 4 | . 4 . Kinetic . | . . . Secondary . | . . . Self-Inflicted Damage 35 | . 35 . Shots 1 | . 1 . Rammed . | . . . Targets Rammed . | . . . Kicked . | . . . Crushed . | . . . Highest Temperature 138 | . 138 27 Average Temperature 58 | . 63 11 Received Heat Transfer 852 | . 414 438 Siege Activations . | . . . Robots Corrupted . | . . . Combat Hostiles . | . . . Parts Fried 13 | . 9 4 Impact Corruptions 14 | . 9 5 Robots Melted . | . . . Combat Hostiles . | . . . Parts Melted . | . . . Heat Transferred 309 | . 50 259 Parts Sabotaged . | . . . Parts Stolen . | . . . Parts Stripped . | . . . Power Chain Reactions 1 | . 1 . Alert | -11 -10 -9 ------- Run | Yrd Mat Mat Peak Influence 217 | . 217 145 Initial 15 | . . 15 Average 60 | . 61 68 Maximum Alert Level 1 | . 1 . Low Security (%) 97 | 100 96 100 Level 1 2 | . 3 . Level 2 . | . . . Level 3 . | . . . Level 4 . | . . . Level 5 . | . . . High Security . | . . . Max Security . | . . . Squads Dispatched 5 | . 4 1 Investigation 2 | . 2 . Extermination . | . . . Reinforcement 3 | . 2 1 Assault . | . . . Garrison . | . . . Intercept . | . . . Searches Triggered . | . . . Construction Impeded . | . . . Haulers Reinforced . | . . . Active Scanning Responses . | . . . Cargo Convoy Interrupts . | . . . Stealth | -11 -10 -9 --------- Run | Yrd Mat Mat Distress Signals 2 | . . 2 Communications Jammed . | . . . Distress Signals . | . . . Times Spotted 37 | . 25 12 Peak Tracking Total 6 | . 3 6 Tactical Retreats 1 | . 1 . Traps | -11 -10 -9 ------- Run | Yrd Mat Mat Traps Triggered 1 | . 1 . Indirectly . | . . . Trap Hack Attempts . | . . . Triggered . | . . . Disarmed . | . . . Reprogrammed . | . . . Reused . | . . . Traps Extracted . | . . . Installed . | . . . Triggered . | . . . Machines | -11 -10 -9 ---------- Run | Yrd Mat Mat Machines Disabled . | . . . Max in Single Turn . | . . . Machines Repaired . | . . . Machines Dismantled . | . . . Machines Sabotaged . | . . . Overloaded Fab Kills . | . . . Hacking | -11 -10 -9 --------- Run | Yrd Mat Mat Machines Accessed 11 | . 10 1 Terminals 8 | . 7 1 Fabricators . | . . . Repair Stations 1 | . 1 . Recycling Units 2 | . 2 . Scanalyzers . | . . . Garrison Access . | . . . Total Hacks 33 | . 31 2 Successful 18 | . 18 . Failed 15 | . 13 2 Catastrophic 5 | . 3 2 Database Lockouts . | . . . Manual 11 | . 9 2 Terminals 25 | . 23 2 Fabricators . | . . . Repair Stations 2 | . 2 . Recycling Units 6 | . 6 . Scanalyzers . | . . . Garrison Access . | . . . Terminal Hacks 11 | . 11 . Record 5 | . 5 . Alert Level 2 | . 2 . Unreport Threat 1 | . 1 . Dispatch Records 1 | . 1 . Recall Reinforcements 1 | . 1 . Zone Layout 1 | . 1 . Fabricator Hacks . | . . . Repair Station Hacks 2 | . 2 . Scan Component 1 | . 1 . Repair 1 | . 1 . Recycling Unit Hacks 5 | . 5 . Recycle Component 1 | . 1 . Process 1 | . 1 . Report Inventory 1 | . 1 . Retrieve Matter 2 | . 2 . Scanalyzer . | . . . Garrison Access Hacks . | . . . Unauthorized Hacks . | . . . Terminals . | . . . Fabricators . | . . . Repair Stations . | . . . Recycling Units . | . . . Scanalyzers . | . . . Garrison Access . | . . . Data Cores Recovered . | . . . Used . | . . . Hacking Detections 10 | . 9 1 Full Trace Events 3 | . 3 . Feedback Events . | . . . Feedback Blocked . | . . . Robot Schematics Acquired . | . . . Robots Built . | . . . Authchips . | . . . Time . | . . . Total Robot Build Rating . | . . . Part Schematics Acquired . | . . . Parts Built . | . . . Authchips . | . . . Time . | . . . Total Part Build Rating . | . . . Parts Repaired 1 | . 1 . Time 13 | . 13 . Parts Recycled 1 | . 1 . Recycled Matter 19 | . 19 . Retrieved Matter 19 | . 19 . Retrieved Components . | . . . Parts Scanalyzed . | . . . Part Schematics Acquired . | . . . Parts Damaged . | . . . Bothacking | -11 -10 -9 ------------ Run | Yrd Mat Mat Used RIF Installer . | . . . Robots Hacked . | . . . Non-combat . | . . . Combat . | . . . Robot Hacks Applied . | . . . Relay Couplers Released . | . . . Fabnet Peak Effective % . | . . . Robots Rewired . | . . . Allies Hacked . | . . . Hacks Repelled . | . . . Allies | -11 -10 -9 -------- Run | Yrd Mat Mat Total Allies . | . . . Largest Group . | . . . Highest-Rated Group . | . . . Highest-Rated Ally . | . . . Total Orders . | . . . Ally Attacks . | . . . Total Damage . | . . . Kills . | . . . Allies Corrupted . | . . . Allies Melted . | . . . Intel | -11 -10 -9 ------- Run | Yrd Mat Mat Robot Analysis Total . | . . . Derelict Logs Recovered . | . . . Drone Launches . | . . . Drone Recoveries . | . . . Exploration | -11 -10 -9 ------------- Run | Yrd Mat Mat Turns Passed 2022 | 94 1408 520 Spaces Moved 1049 | 52 842 155 Core 42 | 5 . 37 Treads 290 | 47 243 . Legs 242 | . 155 87 Wheels 475 | . 444 31 Hover . | . . . Flight . | . . . Fastest Speed 50 | 50 100 95 Average Speed 146 | 149 129 240 Slowest Speed 550 | 160 190 550 Overloaded Moves . | . . . Propulsion Burnouts . | . . . Robots Hopped . | . . . Cave-ins Triggered . | . . . Exploration Rate (%) 39 | 5 99 13 Regions Visited 2 Branch Regions . Pre-discovered Areas . | . . . Known Exits Taken . | . . . Unknown Exits Taken 2 | 1 1 . Scrap Searched . | . . . Spaces Dug . | . . . Terrain Destroyed 1 | . 1 . Melee . | . . . Projectile . | . . . AOE 1 | . 1 . Terrain Rammed . | . . . Walls Destroyed . | . . . Machines Disabled . | . . . Actions | -11 -10 -9 --------- Run | Yrd Mat Mat Total 1340 | 66 1038 236 Wait 89 | . 75 14 Move 1047 | 51 841 155 Hop . | . . . Pick Up 31 | 8 15 8 Fast Attach 12 | 4 6 2 Attach 18 | 2 6 10 Detach 7 | . 5 2 Swap 13 | 1 9 3 Drop 12 | . 9 3 Fire 30 | . 21 9 Melee 81 | . 51 30 Ram . | . . . Kick . | . . . Crush . | . . . Escape Stasis . | . . . Rewire . | . . . Trap . | . . . Miscellaneous . | . . . Route ------- -11/Scrapyard -10/Materials (discovered 4 exits: *Mat x3 / [*Min]) -9/Materials History --------- Turn | Location | Event 18 | -11/Scrapyard | Discovered new exit (range 16) 95 | -11/Scrapyard | Entered Materials 279 | -10/Materials | Discovered new exit (range 15) 318 | -10/Materials | Build established: Mutant 412 | -10/Materials | Repaired Lgt. Treads 926 | -10/Materials | Discovered new exit (range 6) 1071 | -10/Materials | Discovered new exit (range 16) 1265 | -10/Materials | Core integrity fell below 50% 1305 | -10/Materials | Discovered new exit (range 11) 1503 | -10/Materials | Entered another Materials area 1503 | -9/Materials | Evolved 2 slots: Propulsion x1, Utility x1 1751 | -9/Materials | Core integrity fell below 50% 1760 | -9/Materials | Core integrity fell below 20% 1813 | -9/Materials | Lost 9 parts (1p5n1u2w) 2023 | -9/Materials | Destroyed by G-47 Trooper with Particle Gun Last Messages --------------- K-01 Serf collects debris. Acquired Hvy. Assault Rifle. K-01 Serf collects debris. K-01 Serf cleans the Terminal. K-01 Serf cleans the Nuclear Reactor. K-01 Serf cleans the Terminal. K-01 Serf collects debris. K-01 Serf cleans the Terminal. T-07 Excavator destroyed. K-01 Serf collects debris. K-01 Serf destroyed. Extracted 36 matter. K-01 Serf collects debris. K-01 Serf destroyed. Extracted 3 matter. Acquired Wheel. Acquired 10 matter. Acquired Wheel. Acquired Lgt. Ion Engine. K-01 Serf cleans the Terminal. Map ----- +----------------------------------------------------+ | #????????????????????????????????????????????????? | | #????????????????????????????????????????????????? | | #????????????????????????????????????????????????? | | #????????????????????????????????????????????????? | | ###########??????????????????????????????????????? | | # ! #??????????????????????????????????????? | | # [ "" #??????????????????????????????????????? | | # """ #??????????????????????????????????????? | | # """ S" #??????????????????????????????????????? | | # """ """ #??????????????????????????????????????? | | + """ """ #??????????????????????????????????????? | | # =! #??????????????????????#???????????????? | | # [%* #????????????????????? #???????????????? | | ######/####???????????????????? #???????????????? | | #####=##????????????????????? #???????????????? | | [ #?????????????######## ######??????????? | | #?????????????# ?????????? | | #?????????????+ ?????????? | | #### #?????????????# "T"? #????????? | | ##### #?????????????+ #????????? | | ## #?????????????# #????????? | | "" ## ############### g""" """ """???????????? | | "" ## +%% ## """ """ ???????????????? | | "" ## #### # """ """ """???????????? | | + !% #??# % !% # """ """ """ ???????? | | "" ###+##??# ! %!% + @ g ???????? | | "" #?*/????# """ """ # t ???????? | | "" #? ????# """ """ # ###+#######???????????? | | #?""????# """ """ #######?????????????????????? | | ####?""????# #???????????????????????????? | | ???????????####### ###???????????????????????????? | | ?????????????????###?????????????????????????????? | | ?????????????????????????????????????????????????? | | ?????????????????????????????????????????????????? | | ?????????????????????????????????????????????????? | | ?????????????????????????????????????????????????? | | ?????????????????????????????????????????????????? | | ?????????????????????????????????????????????????? | | | | | | | | | | | | | | | | | | | | | | | | | +----------------------------------------------------+ Best States ------------- Heat Dissipation 38 Energy Generation 10 Energy Capacity 500 Matter Stores 300 Matter Capacity 300 Sight Range 16 Robot Scan Range 14 Terrain Scan Density 10 Armor Coverage 150 Evasion (%) 55 Recoil Reduction 2 Item Schematics ----------------- None Robot Schematics ------------------ None Fabricated ------------ Nothing Alien Tech Used ----------------- None Achievements -------------- GoHome() Challenges ------------ None Game ------ Seed TargetFlyingRefractor Manual? 0 Play Time 00:32:56 Cumulative 5.8 hours Start 2024.05.08 @ 23:01:58 End 2024.05.09 @ 10:54:39 Sessions 4 Manual Loads 0 Difficulty Rogue Special Mode None Game No. 5 Rogue 5 Adventurer 0 Explorer 0 Win Type - Total 0 Types 0/0/0/0/0/0/0/0/0 Lore% 9 Gallery% 9 Achievement% 10 Wizard Run 0 Options --------- Layout 1 ASCII 0 Keyboard 0 Movement Numpad Keybinds 0 Fullscreen 1 Font 24/Crisp Map View 50x35 Zoom Use 0% Tactical HUD 0 Map Filters NONE Filters NONE Steam 0 RUN: 52917551-3a20-4696-b438-13b651b19675